bitfinex/quotes_ETHUSD_20250518
["timestamp","ask_amount","ask_price","bid_price","bid_amount"]
[1747584653093,3.87541971,2580.4,2579.9,21.32439426]
[1747584653271,3.87540994,2580.4,2579.9,17.4483]
[1747584653473,3.87561058,2580.3,2579.9,17.4483]
[1747584653672,0.36196785,2580.2,2579.9,17.4483]
[1747584654071,0.36196785,2580.2,2579.9,9.1193]
[1747584654472,4.23764316,2580.2,2579.9,0.7743]
[1747584655193,0.36196785,2580.2,2579.9,0.7743]
[1747584655500,3.87567565,2580.2,2579.9,0.7743]
[1747584655873,3.87557099,2580.3,2579.9,0.7743]
[1747584656701,0.55,2580.1,2579.6,16.667]
[1747584656901,4.70416946,2580.4,2579.7,3.87628778]
[1747584657084,3.87559386,2580.3,2579.8,3.87625605]
[1747584657264,3.87559386,2580.3,2579.6,20.54351023]
[1747584657465,3.87559386,2580.3,2579.7,2.17541255]
[1747584657698,0.36213467,2580.2,2579.8,3.87618233]
[1747584658388,0.36213467,2580.1,2579.8,3.87618233]
[1747584658593,0.33284767,2580.1,2579.7,2.17541255]
[1747584658792,4.20877529,2580.1,2579.5,0.7522]
[1747584658997,3.87596899,2580.0,2579.6,16.664]
[1747584659786,0.8287,2580.4,2579.6,16.664]
[1747584659999,0.55,2580.7,2579.6,16.664]
[1747584660000,3.87556642,2580.3,2579.9,0.7674]
[1747584660198,3.87578247,2580.2,2579.9,0.7674]
[1747584660519,3.87585989,2580.1,2579.7,0.7674]
[1747584660804,3.87596899,2580.0,2579.7,16.663]
[1747584660992,3.87622996,2579.9,2579.7,16.663]
[1747584661172,3.87628127,2579.8,2579.6,16.662]
[1747584661502,0.38757825,2580.2,2579.6,20.53848139]
[1747584661665,4.66807121,2580.3,2579.8,3.87623671]
[1747584661872,0.21743796,2580.2,2579.8,3.87623671]
[1747584662073,4.09312775,2580.2,2579.7,6.60794174]
[1747584662293,3.87581876,2580.1,2579.7,2.73158814]
[1747584662499,3.87612108,2579.9,2579.5,6.7774]
[1747584662717,3.87604737,2580.0,2579.6,16.632]
[1747584662880,3.87590074,2580.1,2579.6,20.50848423]
[1747584663275,4.66805706,2580.3,2579.8,3.87619825]
[1747584663276,3.87552655,2580.3,2579.8,3.87619825]
[1747584663503,3.87562763,2580.3,2579.7,3.87629157]
[1747584663681,3.87580273,2580.2,2579.6,16.632]
[1747584663882,3.87585355,2580.1,2579.8,0.36500573]
[1747584664096,0.21744272,2580.4,2579.8,16.99500573]
[1747584664299,3.87552882,2580.3,2579.8,20.87120349]
[1747584664497,3.87543719,2580.4,2579.9,3.8761011]
[1747584664697,3.87543719,2580.4,2580.0,0.8082]
[1747584664915,5.74340413,2580.5,2580.0,0.8082]
[1747584665080,4.95090413,2580.5,2580.1,3.87577486]
[1747584665411,4.95090413,2580.5,2580.0,0.8082]
[1747584665596,4.95090413,2580.5,2580.3,3.87538371]
[1747584665802,4.95090413,2580.5,2580.4,3.87536815]
[1747584666113,4.95090413,2580.5,2580.4,4.68356815]
[1747584666312,4.95090413,2580.5,2580.4,5.04844495]
[1747584668316,4.95090413,2580.5,2580.4,11.05844495]
[1747584668483,4.95090413,2580.5,2580.4,19.05844495]
[1747584668832,4.95090413,2580.5,2580.4,22.9397545]
[1747584669115,3.87416882,2581.2,2580.6,3.87498947]
[1747584669328,3.87432148,2581.1,2580.6,9.88498947]
[1747584669484,3.87432148,2581.1,2580.6,9.88504622]
[1747584669682,3.87412945,2581.3,2580.6,9.88504622]
[1747584669923,3.87386689,2581.4,2580.4,13.05438635]
[1747584669924,0.2170773,2581.4,2580.9,0.8082]
[1747584670083,0.2170773,2581.4,2581.1,3.87418819]
[1747584670279,0.2170773,2581.4,2580.9,17.4312]
[1747584670582,0.2170773,2581.4,2581.0,3.87442989]
[1747584670805,0.2170773,2581.4,2580.9,21.30575032]
[1747584670983,0.2170773,2581.4,2581.0,16.622]
[1747584671185,3.8741321,2581.3,2580.9,0.8082]
[1747584671408,3.8741321,2581.3,2581.0,16.62]
[1747584671795,3.87417593,2581.2,2581.0,16.62]
[1747584672193,3.87431715,2581.1,2580.9,0.8082]
[1747584672416,3.87431715,2581.1,2581.0,8.304]
[1747584672590,3.87424374,2581.2,2581.0,8.304]
[1747584672790,3.87431715,2581.1,2581.0,8.304]
[1747584673088,3.87423705,2581.2,2581.0,8.304]
[1747584673301,0.55,2581.6,2581.0,8.304]
[1747584673502,3.8738906,2581.4,2581.0,8.304]
[1747584673933,3.87378127,2581.5,2581.0,14.90945648]
[1747584674308,3.87360441,2581.6,2581.1,3.87430128]
[1747584674501,3.87375131,2581.5,2581.0,14.90946797]
[1747584674824,3.87394697,2581.4,2581.0,11.03507923]
[1747584674998,3.87403551,2581.3,2581.0,11.03507923]
[1747584675201,3.87403551,2581.3,2581.0,2.73107923]
[1747584675385,3.87403551,2581.3,2580.9,6.8182]
[1747584675724,3.87403551,2581.3,2580.7,0.98850462]
[1747584675725,4.65769706,2582.9,2581.5,0.2182]
[1747584676025,0.786,2582.9,2582.0,0.2182]
[1747584676196,0.786,2582.9,2581.6,16.731]
[1747584676197,0.04840562,2582.8,2581.7,0.2182]
[1747584676402,3.87277443,2582.2,2581.8,16.613]
[1747584676711,3.87264967,2582.3,2581.8,16.613]
[1747584676922,0.55,2582.6,2581.9,16.611]
[1747584676923,3.87290355,2582.1,2581.9,16.611]
[1747584677242,0.786,2582.3,2581.7,2.30046744]
[1747584677459,0.786,2582.6,2581.9,8.299]
[1747584677603,3.87221684,2582.5,2581.9,12.17209226]
[1747584677921,3.87192728,2582.7,2582.2,0.8254]
[1747584678121,0.36080479,2582.8,2582.3,3.87242228]
[1747584678320,0.36080479,2582.8,2582.4,8.297]
[1747584678910,3.87108239,2583.3,2582.7,4.64921698]
[1747584679111,3.87108239,2583.3,2582.8,3.8717077]
[1747584679311,0.7828,2583.6,2582.9,8.296]
[1747584679540,3.87103184,2583.3,2582.9,8.296]
[1747584679723,3.87087627,2583.4,2582.9,12.16747041]
[1747584679926,3.87102985,2583.3,2582.9,8.296]
[1747584680239,3.87095542,2583.4,2582.9,8.296]
[1747584680569,3.87103844,2583.3,2582.9,8.296]
[1747584680848,3.87139643,2583.1,2582.7,9.0723]
[1747584681045,3.87139372,2583.1,2582.8,8.293]
[1747584681420,3.87147757,2583.0,2582.8,8.293]
[1747584681629,3.87116754,2583.2,2582.8,8.293]
[1747584681826,3.8713174,2583.1,2582.8,8.293]
[1747584682026,3.87157196,2583.0,2582.8,8.293]
[1747584682220,3.87137495,2583.1,2582.8,8.293]
[1747584682419,3.87151433,2583.0,2582.8,8.293]
[1747584683145,3.87146728,2583.0,2582.3,8.291]
[1747584683309,4.25881887,2582.9,2582.3,8.291]
[1747584683503,3.87230682,2582.5,2582.3,8.291]
[1747584683723,3.87236679,2582.4,2582.3,8.291]
[1747584683917,8.7598,2582.7,2582.0,8.29]
[1747584684141,3.87243229,2582.4,2582.0,8.29]
[1747584684354,3.87228546,2582.5,2582.0,8.29]
[1747584684554,3.87246219,2582.4,2582.0,8.29]
[1747584684944,3.87228546,2582.5,2582.0,12.1629144]
[1747584684945,3.87226727,2582.5,2582.0,12.1629144]
[1747584685148,0.7598,2582.7,2582.0,9.6159345]
[1747584685366,3.87197188,2582.7,2582.0,13.4888177]
[1747584685529,3.87197188,2582.7,2582.0,13.48882787]
[1747584685728,0.38715143,2582.9,2582.0,1.3259345]
[1747584685729,3.87222235,2582.5,2582.0,1.3259345]
[1747584685930,3.87213149,2582.6,2582.1,16.597]
[1747584686258,3.87213149,2582.6,2582.1,20.46981337]
[1747584686465,3.87213149,2582.6,2582.1,16.597]
[1747584686632,3.87222381,2582.5,2582.1,16.597]
[1747584686959,3.87209394,2582.6,2582.1,20.46974765]
[1747584687150,3.87209394,2582.6,2582.1,22.90402984]
[1747584687355,0.38715143,2582.9,2582.2,0.784]
[1747584687553,3.8712982,2583.2,2582.2,3.87256513]
[1747584687763,3.87140612,2583.1,2582.5,0.784]
[1747584688077,3.87140612,2583.1,2582.6,20.46799039]
[1747584688269,3.87140612,2583.1,2582.6,22.98042611]
[1747584688436,3.87151051,2583.0,2582.6,19.10843572]
[1747584688633,8.0,2583.4,2582.6,22.98048207]
[1747584688879,3.87169202,2582.9,2582.5,0.784]
[1747584689179,3.87092091,2583.4,2582.7,16.595]
[1747584689180,3.87140988,2583.1,2582.7,16.595]
[1747584689384,8.0,2583.4,2582.7,16.595]
[1747584689532,3.87151781,2583.0,2582.7,16.595]
[1747584689732,3.87161839,2582.9,2582.7,16.595]
[1747584690243,3.87153287,2583.0,2582.5,4.65620939]
[1747584690466,3.87153287,2583.0,2582.6,17.05762094]
[1747584691171,3.87139163,2583.1,2582.6,20.92967592]
[1747584691533,3.87139163,2583.1,2582.6,17.05762094]
[1747584691734,3.87143494,2583.1,2582.7,16.591]
[1747584691938,3.87143494,2583.1,2582.6,0.46562094]
[1747584691939,3.87158498,2583.0,2582.6,0.46562094]
[1747584692269,3.87158498,2583.0,2582.7,16.591]
[1747584693585,3.87106966,2583.3,2582.9,0.8327]
[1747584693869,3.87131211,2583.2,2583.0,8.281]
[1747584694075,0.7598,2583.5,2583.0,8.281]
[1747584694370,3.87130037,2583.2,2583.0,8.251]
[1747584695174,0.7598,2583.5,2583.0,9.98747]
[1747584695175,3.87073722,2583.5,2583.0,9.98747]
[1747584695343,3.8708466,2583.5,2583.0,9.98747]
[1747584695545,3.8708466,2583.5,2583.0,19.86880009]
[1747584695744,3.87089332,2583.4,2583.0,15.99747]
[1747584695965,3.87089332,2583.4,2583.0,7.74647]
[1747584696275,3.87095231,2583.4,2583.0,6.01]
[1747584696476,3.87102397,2583.3,2583.0,22.568]
[1747584696674,3.87081464,2583.5,2583.0,26.43945015]
[1747584696877,3.87061506,2583.6,2583.0,22.568]
[1747584697171,3.87079828,2583.5,2583.0,26.43945264]
[1747584697370,3.87079828,2583.5,2583.1,2.72721526]
[1747584697571,3.87111443,2583.3,2583.1,2.72721526]
[1747584697791,3.87105014,2583.3,2583.1,2.72721526]
[1747584697991,3.87105014,2583.3,2583.2,8.277]
[1747584698202,11.87101769,2583.3,2581.9,0.45841529]
[1747584698359,0.753,2582.8,2581.9,1.06963568]
[1747584698561,3.87214668,2582.6,2582.2,0.45841529]
[1747584698772,0.753,2582.8,2582.2,0.89154315]
[1747584698973,0.753,2582.8,2582.2,0.45841529]
[1747584699150,3.87246126,2582.4,2582.2,0.45841529]
[1747584699391,3.87251674,2582.3,2582.2,0.45841529]
[1747584699546,4.67711674,2582.3,2582.2,0.45841529]
[1747584701298,0.8046,2582.6,2582.2,0.45841529]
[1747584701482,3.87229983,2582.5,2582.2,0.45841529]
[1747584701778,0.8046,2582.6,2582.2,0.45841529]
[1747584702083,3.87234683,2582.5,2582.1,8.274]
[1747584702280,3.87237839,2582.4,2582.1,10.31680243]
[1747584702450,3.87253084,2582.3,2582.1,10.31680243]
[1747584702648,3.87274939,2582.2,2581.8,8.274]
[1747584702852,0.8255,2582.7,2581.8,12.14719373]
[1747584703184,3.87248457,2582.4,2581.8,12.14717938]
[1747584703585,3.87248457,2582.4,2581.9,3.87309171]
[1747584703882,4.23249175,2582.6,2581.8,12.14719618]
[1747584703883,3.87252555,2582.3,2581.8,12.14719618]
[1747584704087,3.87268352,2582.2,2581.9,2.11796962]
[1747584704380,3.87268352,2582.2,2581.9,18.67196962]
[1747584704549,3.87260546,2582.3,2581.9,10.39096962]
[1747584704750,3.87266922,2582.2,2581.8,8.281]
[1747584704949,0.36040029,2582.6,2581.7,0.7515]
[1747584705179,0.36040029,2582.5,2581.8,8.273]
[1747584705499,4.23266308,2582.5,2581.9,3.87306322]
[1747584705703,4.23266308,2582.5,2581.9,3.87305079]
[1747584705993,4.23266308,2582.5,2582.0,1.60192781]
[1747584706151,3.87226279,2582.5,2582.0,1.60192781]
[1747584706563,3.8723735,2582.4,2582.0,1.60192781]
[1747584706780,3.8722241,2582.5,2582.0,1.60192781]
[1747584706988,3.8722241,2582.5,2582.0,5.47489007]
[1747584707193,3.87207598,2582.6,2582.1,0.54748901]
[1747584707391,3.87245357,2582.4,2581.8,12.14625959]
[1747584707578,3.87223664,2582.5,2581.8,12.14625959]
[1747584707898,3.87242706,2582.4,2581.9,3.87310617]
[1747584708104,3.87226824,2582.5,2582.0,3.8729542]
[1747584708398,3.87228386,2582.5,2582.0,16.553]
[1747584708558,3.87228386,2582.5,2582.1,2.04260034]
[1747584708905,3.87241854,2582.4,2582.1,2.04260034]
[1747584709061,3.8722394,2582.5,2581.8,3.8732153]
[1747584709261,3.87244167,2582.4,2582.1,8.27]
[1747584709920,0.36114828,2582.5,2582.1,12.1427805]
[1747584710067,0.36114828,2582.5,2582.1,8.27]
[1747584710270,0.36114828,2582.5,2582.2,2.0424888]
[1747584710804,3.87247362,2582.4,2582.1,8.269]
[1747584710980,3.87263295,2582.3,2582.1,8.269]
[1747584711171,3.87267911,2582.2,2582.1,8.269]
[1747584711373,3.87258188,2582.3,2582.1,8.269]
[1747584711573,3.87266671,2582.2,2581.7,4.62485252]
[1747584711803,3.87266671,2582.2,2581.8,18.68548525]
[1747584712003,0.36114828,2582.5,2581.9,16.551]
[1747584712300,3.87243743,2582.4,2581.9,20.42398681]
[1747584712500,4.23341697,2582.5,2582.0,3.87295557]
[1747584713213,0.36114828,2582.5,2582.1,6.01]
[1747584713414,0.36114828,2582.5,2582.1,8.65339556]
[1747584713576,4.23340945,2582.5,2582.1,8.65339556]
[1747584714078,3.87247187,2582.4,2582.1,8.65339556]
[1747584714272,3.87255155,2582.3,2582.1,8.65339556]
[1747584714472,3.87251674,2582.3,2582.1,6.01]
[1747584714681,3.87244308,2582.4,2582.2,8.267]
[1747584714988,3.87229308,2582.5,2582.2,8.267]
[1747584715188,8.0,2582.2,2581.5,0.45841529]
[1747584715514,4.62366678,2581.6,2581.5,0.45841529]
[1747584716214,13.1856908,2581.6,2581.5,0.45841529]
[1747584716377,13.4984127,2581.6,2581.5,0.45841529]
[1747584716577,15.69651373,2581.6,2581.5,0.45841529]
[1747584717093,3.87473317,2580.9,2580.6,0.8106]
[1747584717301,3.87481781,2580.8,2580.6,17.3606]
[1747584717505,0.7501,2580.5,2580.0,0.45841529]
[1747584717818,3.8751242,2580.6,2580.1,1.24404565]
[1747584717819,3.87515651,2580.6,2580.1,1.24404565]
[1747584718190,0.7501,2581.0,2580.1,1.24404565]
[1747584718415,3.87518638,2580.6,2580.1,1.24404565]
[1747584718742,3.87499768,2580.7,2580.1,1.24404565]
[1747584718881,3.87513039,2580.6,2580.1,1.24404565]
[1747584719080,3.87522903,2580.5,2580.2,0.55782861]
[1747584719425,3.87508828,2580.6,2580.2,0.55782861]
[1747584719580,3.87518586,2580.6,2580.2,0.55782861]
[1747584719980,3.87488861,2580.8,2580.2,0.55782861]
[1747584720217,3.87488861,2580.8,2580.2,4.43347371]
[1747584720392,3.87494328,2580.7,2580.3,0.56775194]
[1747584720595,3.87514291,2580.6,2580.3,0.56775194]
[1747584720901,3.87514027,2580.6,2580.2,0.55782861]
[1747584721294,3.87514027,2580.6,2580.1,1.24404565]
[1747584721494,3.87514027,2580.6,2580.2,6.01]
[1747584721679,3.87533933,2580.5,2580.2,6.01]
[1747584721881,3.87508458,2580.6,2580.3,16.55]
[1747584722421,3.87523584,2580.5,2580.3,16.55]
[1747584722722,3.87511641,2580.6,2580.3,16.55]
[1747584722896,3.87495137,2580.7,2580.3,16.55]
[1747584723098,3.87510371,2580.6,2580.3,16.55]
[1747584723293,3.87510308,2580.6,2580.3,16.55]
[1747584723510,3.87516778,2580.6,2580.3,16.55]
[1747584724301,3.87522166,2580.5,2580.3,16.55]
[1747584724497,3.87476574,2580.9,2580.3,6.01]
[1747584724701,0.46248657,2580.9,2580.3,14.276]
[1747584724898,3.87551835,2580.3,2580.2,6.01]
[1747584725103,3.87507312,2580.6,2580.2,6.01]
[1747584725519,3.87539989,2580.4,2580.2,6.01]
[1747584725721,3.87528299,2580.5,2580.2,6.01]
[1747584725923,0.8072,2580.8,2580.2,6.01]
[1747584725924,3.87538435,2580.4,2580.2,6.01]
[1747584726125,3.87551835,2580.3,2580.2,6.01]
[1747584727602,0.8072,2580.3,2579.8,0.785]
[1747584727802,0.04837583,2580.2,2579.3,26.23341529]
[1747584728016,3.87583991,2580.1,2579.3,31.785]
[1747584728321,3.87607588,2580.0,2579.4,3.87677084]
[1747584728527,3.87607588,2580.0,2579.5,3.87670038]
[1747584728904,3.87612101,2579.9,2579.4,3.87679399]
[1747584729107,3.87612101,2579.9,2579.4,7.75810354]
[1747584729296,3.87612101,2579.9,2579.4,3.88130955]
[1747584729497,3.87599379,2580.0,2579.4,3.88130955]
[1747584729825,3.87618541,2579.9,2579.4,7.75815436]
[1747584730126,3.87613415,2579.9,2579.4,7.75813867]
[1747584730427,0.8072,2580.3,2579.6,3.87657001]
[1747584730637,0.8072,2580.3,2579.7,8.265]
[1747584730807,3.87604863,2580.0,2579.5,7.7580188]
[1747584731006,3.87604863,2580.0,2579.6,16.531]
[1747584731209,3.87621239,2579.9,2579.7,16.532]
[1747584731734,3.87479144,2580.8,2580.4,0.7959]
[1747584732025,3.87493662,2580.7,2580.4,0.7959]
[1747584732823,0.8113,2580.9,2580.4,0.7959]
[1747584732995,4.68595677,2580.9,2580.4,0.7959]
[1747584733192,0.8113,2580.9,2580.4,0.7959]
[1747584733395,3.87433189,2581.1,2580.6,3.87506781]
[1747584733631,3.87446728,2581.0,2580.5,9.88518049]
[1747584733830,3.87437135,2581.1,2580.5,9.88518049]
[1747584734009,3.87417383,2581.2,2580.5,6.01]
[1747584734209,3.87402119,2581.3,2580.6,9.88501721]
[1747584734402,3.87394307,2581.4,2580.7,1.82120172]
[1747584734598,3.87377983,2581.5,2580.8,20.40674324]
[1747584734933,0.8302,2581.6,2580.8,16.532]
[1747584735302,3.87394761,2581.4,2580.8,20.40666593]
[1747584735503,3.87394761,2581.4,2580.9,3.87460369]
[1747584735725,3.87377456,2581.5,2581.0,0.39936495]
[1747584735938,3.8739207,2581.4,2581.1,6.01]
[1747584736299,0.8302,2580.1,2579.0,2.05514079]
[1747584736541,3.87596899,2580.0,2579.4,3.87674309]
[1747584736742,3.87527289,2580.5,2579.4,3.87674309]
[1747584736743,3.87551127,2580.4,2579.7,5.32023079]
[1747584736941,0.8302,2580.6,2579.7,5.32023079]
[1747584736942,0.8302,2580.6,2579.7,1.44392039]
[1747584737147,3.87529721,2580.5,2579.8,3.8761935]
[1747584737322,3.87545037,2580.4,2580.0,16.554]
[1747584737647,3.8753253,2580.5,2580.0,16.554]
[1747584737941,3.87547029,2580.4,2580.1,8.28]
[1747584738110,3.87547029,2580.4,2580.2,16.548]
[1747584738819,3.87551835,2580.3,2580.2,16.548]
[1747584739850,0.8152,2580.4,2579.7,4.70908351]
[1747584740036,3.87517552,2580.6,2580.0,20.40584498]
[1747584740223,0.8152,2580.7,2580.0,16.53]
[1747584740547,3.87481843,2580.8,2580.1,0.8249]
[1747584741054,0.8152,2580.9,2580.3,3.87549503]
[1747584741055,4.68989191,2580.9,2580.3,3.87549503]
[1747584741221,5.40916576,2581.9,2580.1,4.70070168]
[1747584741222,0.8152,2581.5,2580.5,4.70005921]
[1747584741543,3.87310705,2582.0,2581.0,0.8249]
[1747584741749,0.8152,2582.2,2581.4,3.87375368]
[1747584741960,3.8727652,2582.2,2581.6,0.8249]
[1747584742111,3.87301226,2582.0,2581.6,0.8249]
[1747584742512,3.87301226,2582.0,2581.1,16.732]
[1747584742513,3.87326671,2581.8,2581.7,16.57]
[1747584742750,3.87341674,2581.7,2581.6,16.57]
[1747584743310,0.28899998,2582.4,2581.7,3.87336206]
[1747584743542,0.8152,2582.3,2581.8,2.04433621]
[1747584743729,0.8152,2582.3,2581.8,16.566]
[1747584744045,4.68779965,2582.3,2581.6,16.565]
[1747584744435,3.87326671,2581.8,2581.6,16.565]
[1747584744744,3.87356678,2581.6,2581.5,16.575]
[1747584744931,0.77954002,2581.6,2581.1,16.732]
[1747584745129,3.87416705,2581.2,2581.1,16.732]
[1747584745534,3.87402369,2581.3,2580.9,16.575]
[1747584745535,3.87440496,2581.1,2580.9,16.575]
[1747584745736,0.59842903,2581.5,2580.7,0.45841529]
[1747584745935,3.87448003,2581.0,2580.8,16.58]
[1747584746518,3.87461738,2580.9,2580.8,16.58]
[1747584746717,0.55,2581.3,2580.8,16.58]
[1747584747038,0.55,2581.3,2580.7,0.45841529]
[1747584747039,3.87452512,2581.0,2580.7,17.02841529]
[1747584747235,0.44238669,2581.2,2580.7,17.02841529]
[1747584747448,3.87476751,2580.8,2580.7,17.02841529]
[1747584747761,4.68965629,2581.1,2580.7,17.02841529]
[1747584747923,0.8152,2581.1,2580.7,8.72441529]
[1747584748128,3.87465567,2580.9,2580.7,8.72441529]
[1747584748435,0.8152,2581.1,2580.7,8.72441529]
[1747584748436,3.87442246,2581.1,2580.7,8.72441529]
[1747584748834,3.87463734,2580.9,2580.3,17.5539]
[1747584749015,3.87476751,2580.8,2580.7,16.559]
[1747584749430,3.87470793,2580.9,2580.7,16.559]
[1747584749953,3.87462809,2580.9,2580.7,16.559]
[1747584750546,3.87447103,2581.0,2580.7,16.559]
[1747584751045,0.8152,2581.4,2580.7,16.559]
[1747584751252,0.4688939,2581.3,2580.7,20.43383296]
[1747584751449,3.87396802,2581.4,2580.9,0.8249]
[1747584751637,0.8152,2581.7,2581.0,3.87433103]
[1747584751841,0.8152,2582.0,2581.1,6.01]
[1747584752027,0.55,2581.8,2581.2,6.01]
[1747584752237,3.87401696,2581.3,2581.2,6.01]
[1747584752446,3.87416705,2581.2,2581.1,6.01]
[1747584753044,4.73050697,2581.2,2581.1,6.01]
[1747584754156,3.87536815,2580.4,2580.3,0.45841529]
[1747584754358,34.93512665,2580.4,2580.3,0.45841529]
[1747584754540,38.81616271,2580.4,2580.3,0.45841529]
[1747584755450,39.39269418,2580.4,2580.3,0.45841529]
[1747584756023,3.87714226,2579.3,2578.6,3.87802151]
[1747584756219,3.87693046,2579.4,2578.7,8.58]
[1747584756424,3.87712976,2579.3,2578.8,0.858]
[1747584756650,3.8771727,2579.2,2578.8,0.858]
[1747584756952,3.8770891,2579.3,2578.8,0.858]
[1747584757139,4.42657001,2579.6,2578.8,0.858]
[1747584757457,4.42657001,2579.6,2578.4,0.8249]
[1747584757458,3.87723894,2579.2,2578.7,8.545]
[1747584757760,4.32462594,2579.5,2578.6,8.58]
[1747584758051,3.87750898,2579.0,2578.6,17.122]
[1747584758256,0.55,2579.3,2578.6,8.58]
[1747584758758,3.87770404,2578.9,2578.6,8.58]
[1747584759724,0.55,2579.3,2578.6,8.58]
[1747584759725,3.87735563,2579.1,2578.6,8.58]
[1747584760350,3.87749173,2579.0,2578.6,8.58]
[1747584760728,3.87764693,2578.9,2578.6,8.58]
[1747584760928,3.87754134,2579.0,2578.6,8.58]
[1747584761930,3.87757209,2579.0,2578.6,8.58]
[1747584762871,3.87762544,2578.9,2578.6,8.58]
[1747584763227,3.87746779,2579.1,2578.6,8.58]
[1747584763432,3.87745443,2579.1,2578.6,8.58]
[1747584763661,3.87747473,2579.0,2578.6,8.58]
[1747584763831,8.0,2579.1,2578.6,8.58]
[1747584764032,3.87734964,2579.1,2578.6,8.58]
[1747584764233,3.87740551,2579.1,2578.6,8.58]
[1747584764766,3.87740551,2579.1,2578.6,1.60901551]
[1747584765151,8.0,2579.1,2578.6,10.07301551]
[1747584765364,8.0,2579.1,2578.6,15.04080478]
[1747584766262,8.0,2579.2,2578.6,11.16280706]
[1747584766436,11.87725567,2579.2,2578.7,6.01]
[1747584767138,8.0,2578.7,2577.6,0.45841529]
[1747584767380,12.64302739,2577.7,2577.6,0.45841529]
[1747584768633,26.32341481,2577.7,2577.6,0.45841529]
[1747584768868,3.87972841,2577.5,2577.4,0.61122039]
[1747584769033,21.26963945,2577.5,2577.4,0.61122039]
[1747584769232,21.22112841,2577.5,2577.4,0.61122039]
[1747584769432,21.22112841,2577.5,2576.0,9.5792]
[1747584769433,0.7564,2576.9,2576.0,0.8212]
[1747584769639,3.88144022,2576.4,2576.0,0.8212]
[1747584769832,3.88122806,2576.6,2576.0,0.8212]
[1747584770156,3.88136508,2576.5,2576.0,0.8212]
[1747584770358,3.88138487,2576.4,2576.0,0.8212]
[1747584770534,3.88155961,2576.3,2576.0,0.8212]
[1747584770733,13.22504398,2576.9,2576.0,0.8212]
[1747584770973,3.88124373,2576.5,2575.7,12.64742426]
[1747584771156,3.88153767,2576.3,2575.8,2.20566243]
[1747584771687,0.7564,2576.9,2575.8,2.20566243]
[1747584771996,3.88107935,2576.7,2575.9,3.882138]
[1747584772176,3.88107935,2576.7,2575.8,6.0878576]
[1747584772177,3.88136442,2576.5,2575.8,6.0878576]
[1747584772347,3.88137246,2576.5,2575.8,6.0878576]
[1747584772551,3.88137246,2576.5,2575.9,1.48528576]
[1747584772785,3.88137246,2576.5,2575.9,5.36742229]
[1747584772990,0.20256506,2578.2,2576.0,0.8003]
[1747584772991,0.29250712,2577.5,2576.0,0.8003]
[1747584773147,3.88047914,2577.1,2576.4,3.88129994]
[1747584773361,3.8807018,2576.9,2576.4,0.77628688]
[1747584773567,0.04851197,2577.3,2576.6,3.88106199]
[1747584773752,3.88026215,2577.2,2576.6,3.88106199]
[1747584773957,3.88034584,2577.1,2576.6,3.88106199]
[1747584774660,3.88034584,2577.1,2576.5,4.64844984]
[1747584774854,3.88051446,2577.0,2576.5,3.43371161]
[1747584775086,3.88040053,2577.1,2576.5,7.31494063]
[1747584775289,3.88011847,2577.3,2576.5,7.31494063]
[1747584775594,3.8802653,2577.2,2576.6,3.88108359]
[1747584776789,4.17707989,2577.5,2576.8,3.88070023]
[1747584776982,3.88003143,2577.3,2576.6,3.88108073]
[1747584777159,3.88003143,2577.3,2576.7,3.88081479]
[1747584777362,3.88003143,2577.3,2576.8,3.88073131]
[1747584777592,3.88003143,2577.3,2576.7,3.88090608]
[1747584778092,3.88019116,2577.2,2576.7,3.88090608]
[1747584778473,3.88019116,2577.2,2576.6,3.88102722]
[1747584778668,3.88036126,2577.1,2576.6,6.81404876]
[1747584778980,3.88037765,2577.1,2576.5,0.7673]
[1747584779170,3.88058385,2577.0,2576.6,17.289]
[1747584779362,3.88065266,2576.9,2576.6,8.592]
[1747584779663,3.88065266,2576.9,2576.6,17.286]
[1747584780270,2.39403191,2577.5,2576.6,17.286]
[1747584780474,3.87998524,2577.4,2576.8,3.88078236]
[1747584780674,0.8109,2578.0,2576.7,8.2034497]
[1747584780875,3.87944,2577.7,2577.1,0.7673]
[1747584781196,3.8795779,2577.6,2577.1,0.7673]
[1747584781396,3.88005438,2577.3,2577.1,0.7673]
[1747584781692,3.88002948,2577.3,2577.0,8.671]
[1747584783803,3.88028611,2577.2,2576.8,0.7673]
[1747584783990,3.88028611,2577.2,2576.8,18.0013]
[1747584784299,3.88011982,2577.3,2576.8,18.0013]
[1747584784594,3.8803366,2577.1,2576.8,18.0013]
[1747584784976,3.88024834,2577.2,2576.8,18.0013]
[1747584785182,3.88010442,2577.3,2576.8,18.0013]
[1747584785369,3.88019498,2577.2,2576.8,18.0013]
[1747584785570,3.88010466,2577.3,2576.8,18.0013]
[1747584785874,3.8797778,2577.5,2576.8,21.88205723]
[1747584786088,3.8797778,2577.5,2576.9,3.88054807]
[1747584786282,3.87991733,2577.4,2576.9,3.88054807]
[1747584787298,4.16501993,2577.7,2577.2,3.88009253]
[1747584787499,3.87958495,2577.6,2577.0,9.89041626]
[1747584787801,3.87976076,2577.5,2577.0,6.01]
[1747584788006,3.87917451,2577.9,2577.1,8.609]
[1747584788188,3.87987812,2577.5,2577.1,8.609]
[1747584789000,3.87964188,2577.6,2577.1,8.609]
[1747584789307,3.87973985,2577.5,2577.1,8.609]
[1747584789874,3.87965093,2577.6,2577.1,8.609]
[1747584790077,0.7551,2578.3,2577.3,0.7899]
[1747584790271,3.87929856,2577.8,2577.3,4.66991984]
[1747584790723,0.29657385,2577.9,2577.4,3.87977718]
[1747584790905,4.1757068,2577.9,2577.4,3.87977718]
[1747584791110,3.87879684,2578.2,2577.5,3.87972841]
[1747584791299,3.87869488,2578.2,2577.6,3.87943267]
[1747584791507,3.87892643,2578.1,2577.6,8.579]
[1747584792008,0.7551,2578.3,2577.6,8.579]
[1747584792373,3.87940721,2577.8,2577.6,17.192]
[1747584792773,3.87922398,2577.9,2577.6,17.192]
[1747584792992,3.8792839,2577.8,2577.4,8.56]
[1747584793278,3.8792839,2577.8,2577.4,8.557]
[1747584793500,3.87942746,2577.7,2577.5,6.01]
[1747584793816,3.87913233,2577.9,2577.5,6.01]
[1747584794113,3.87945773,2577.7,2577.5,6.01]
[1747584794413,3.8795779,2577.6,2577.5,6.01]
[1747584795780,8.0,2577.5,2576.8,14.636]